bitfinex/quotes_BTCUSD_20230113
["timestamp","ask_amount","ask_price","bid_price","bid_amount"]
[1673603657893,0.01109359,18902.0,18901.0,3.26427569]
[1673603657894,0.04209359,18902.0,18901.0,3.26427569]
[1673603658150,0.04209359,18902.0,18901.0,3.72190946]
[1673603658412,0.04209359,18902.0,18901.0,3.56405712]
[1673603658673,0.01109359,18902.0,18901.0,3.25405712]
[1673603659006,0.01109359,18902.0,18901.0,3.28905712]
[1673603659275,0.01109359,18902.0,18901.0,2.84852252]
[1673603659530,0.01109359,18902.0,18901.0,3.14852252]
[1673603659812,0.01109359,18902.0,18901.0,2.84852252]
[1673603660340,0.01109359,18902.0,18901.0,2.98652252]
[1673603660602,0.01109359,18902.0,18901.0,2.53325497]
[1673603660877,0.01109359,18902.0,18901.0,2.97125497]
[1673603661162,0.01109359,18902.0,18901.0,2.67125497]
[1673603661428,0.01079179,18903.0,18902.0,0.19386718]
[1673603661709,0.01079179,18903.0,18902.0,3.32464798]
[1673603662240,0.01079179,18903.0,18902.0,3.74702614]
[1673603662534,0.01079179,18903.0,18902.0,3.74663616]
[1673603663359,0.01079179,18903.0,18902.0,3.58860877]
[1673603663895,0.01079179,18903.0,18902.0,3.32408877]
[1673603664157,0.01079179,18903.0,18902.0,3.46208877]
[1673603664472,0.01079179,18903.0,18902.0,3.62011616]
[1673603664749,0.01079179,18903.0,18902.0,2.30495496]
[1673603664975,0.01079179,18903.0,18902.0,2.00495496]
[1673603665232,0.01079179,18903.0,18902.0,1.84782174]
[1673603666828,0.01079179,18903.0,18902.0,2.14782174]
[1673603667092,0.01079179,18903.0,18902.0,1.84782174]
[1673603667350,0.01079179,18903.0,18902.0,1.75462174]
[1673603668161,0.01079179,18903.0,18902.0,1.68294174]
[1673603669988,0.01209444,18903.0,18902.0,1.68294174]
[1673603671273,0.01209444,18903.0,18902.0,1.98294174]
[1673603673165,0.01209444,18903.0,18902.0,2.20104874]
[1673603673432,0.01209444,18903.0,18902.0,1.29347818]
[1673603673917,0.01209444,18903.0,18902.0,1.15547818]
[1673603674181,0.01309444,18903.0,18902.0,1.29347818]
[1673603674470,0.01209444,18903.0,18902.0,1.15547818]
[1673603674733,0.01309444,18903.0,18902.0,1.29447818]
[1673603675004,0.01209444,18903.0,18902.0,1.15547818]
[1673603675271,0.01309444,18903.0,18902.0,1.29447818]
[1673603675563,0.01309444,18903.0,18902.0,1.55447818]
[1673603676354,0.01309444,18903.0,18902.0,1.45447818]
[1673603676617,0.01309444,18903.0,18902.0,1.12529418]
[1673603677775,0.01309444,18903.0,18902.0,0.42118718]
[1673603678313,0.53558752,18903.0,18902.0,0.42118718]
[1673603681020,0.53675046,18903.0,18902.0,0.42118718]
[1673603681284,0.53558752,18903.0,18902.0,0.42118718]
[1673603681553,0.60597216,18903.0,18902.0,0.42118718]
[1673603682140,0.6071351,18903.0,18902.0,0.42118718]
[1673603682373,0.60597216,18903.0,18902.0,0.42118718]
[1673603682896,0.60597216,18903.0,18902.0,0.42110448]
[1673603683167,0.6071351,18903.0,18902.0,0.42110448]
[1673603683659,0.60597216,18903.0,18902.0,0.42110448]
[1673603684194,0.6071351,18903.0,18902.0,0.42110448]
[1673603686774,0.60597216,18903.0,18902.0,0.42110448]
[1673603687284,0.69927216,18903.0,18902.0,0.42110448]
[1673603689242,0.10639444,18903.0,18902.0,0.42110448]
[1673603690004,0.10639444,18903.0,18902.0,1.0292572]
[1673603690253,0.10755755,18903.0,18902.0,1.0292572]
[1673603690489,0.10639461,18903.0,18902.0,1.0292572]
[1673603691747,0.48947521,18906.0,18903.0,0.1]
[1673603691748,0.15844371,18906.0,18903.0,0.1]
[1673603692003,0.17057166,18907.0,18904.0,0.21030494]
[1673603692246,0.17057166,18907.0,18905.0,0.21030494]
[1673603692738,0.17057166,18907.0,18903.0,0.48308256]
[1673603692998,0.001,18906.0,18903.0,0.44930494]
[1673603693247,1.32262486,18909.0,18904.0,0.429184]
[1673603693495,1.32262486,18909.0,18905.0,0.91967134]
[1673603693496,0.0933,18908.0,18905.0,0.91967134]
[1673603693750,0.001,18907.0,18906.0,0.500864]
[1673603693995,0.0933,18908.0,18906.0,0.500864]
[1673603694243,0.0933,18908.0,18907.0,0.65485142]
[1673603696258,0.1033,18908.0,18907.0,0.65485142]
[1673603697020,0.0933,18908.0,18907.0,0.65485142]
[1673603697267,0.0943,18908.0,18907.0,0.77085142]
[1673603697515,0.0933,18908.0,18907.0,0.65485142]
[1673603698497,0.0933,18908.0,18907.0,0.77085142]
[1673603698498,0.09446294,18908.0,18907.0,0.77085142]
[1673603698746,0.09546294,18908.0,18907.0,0.77085142]
[1673603699479,0.42457094,18908.0,18907.0,0.77085142]
[1673603699722,0.09546294,18908.0,18907.0,0.77085142]
[1673603700463,0.0943,18908.0,18907.0,0.77085142]
[1673603702805,0.09546294,18908.0,18907.0,0.77085142]
[1673603703394,0.25365858,18908.0,18907.0,0.77085142]
[1673603703586,0.25365858,18908.0,18907.0,0.116]
[1673603703836,1.22913544,18908.0,18907.0,0.116]
[1673603704096,1.52913544,18908.0,18907.0,0.116]
[1673603704356,1.68821271,18908.0,18907.0,0.116]
[1673603704894,1.38821271,18908.0,18907.0,0.116]
[1673603705380,1.68821271,18908.0,18907.0,0.116]
[1673603705923,1.38821271,18908.0,18907.0,0.116]
[1673603706185,1.68777798,18908.0,18907.0,0.116]
[1673603706450,1.07009379,18908.0,18907.0,0.116]
[1673603706710,1.47963369,18908.0,18907.0,0.116]
[1673603707740,1.47963369,18908.0,18904.0,0.1]
[1673603707741,1.67592037,18908.0,18904.0,0.1]
[1673603708004,0.15829041,18905.0,18903.0,0.1]
[1673603708271,0.329108,18904.0,18903.0,0.1]
[1673603708549,0.329108,18904.0,18902.0,1.87034664]
[1673603708550,0.329108,18904.0,18902.0,0.90624664]
[1673603708836,0.39572602,18905.0,18902.0,0.90624664]
[1673603709358,0.40672602,18905.0,18903.0,0.80635557]
[1673603709628,0.39572602,18905.0,18903.0,0.73835557]
[1673603710114,0.011,18904.0,18903.0,0.1]
[1673603710376,0.1056022,18904.0,18903.0,0.1]
[1673603710651,0.39728024,18904.0,18903.0,0.1]
[1673603710918,0.38628024,18904.0,18903.0,0.1]
[1673603711245,0.54457065,18904.0,18903.0,0.068]
[1673603711461,0.54457065,18904.0,18902.0,0.9299644]
[1673603711728,0.55557065,18904.0,18903.0,0.068]
[1673603712530,0.54457065,18904.0,18902.0,0.9299644]
[1673603712822,0.79300626,18904.0,18902.0,0.9979644]
[1673603713088,0.79300626,18904.0,18902.0,0.9959644]
[1673603713633,0.25289261,18904.0,18903.0,0.65460423]
[1673603713917,0.1056022,18904.0,18903.0,0.82260423]
[1673603714196,0.09576514,18904.0,18903.0,0.75460423]
[1673603714466,0.1056022,18904.0,18903.0,0.75460423]
[1673603714744,0.0946022,18904.0,18903.0,0.75460423]
[1673603715014,0.0013022,18904.0,18903.0,0.75460423]
[1673603716404,0.0013022,18904.0,18903.0,1.08378823]
[1673603717229,0.0123022,18904.0,18903.0,1.15178823]
[1673603718524,0.0123022,18904.0,18903.0,0.82260423]
[1673603718786,0.0123022,18904.0,18903.0,1.15178823]
[1673603719603,0.0123022,18904.0,18903.0,0.82260423]
[1673603720401,0.0123022,18904.0,18903.0,1.00234661]
[1673603720690,0.0123022,18904.0,18903.0,0.497184]
[1673603720964,0.0123022,18904.0,18903.0,1.00622006]
[1673603721234,0.0123022,18904.0,18903.0,0.87662734]
[1673603721510,1e-08,18904.0,18903.0,0.497184]
[1673603721793,1e-08,18904.0,18903.0,0.87662734]
[1673603722076,1e-08,18904.0,18903.0,0.497184]
[1673603727292,1e-08,18904.0,18903.0,0.87662734]
[1673603727564,1e-08,18904.0,18903.0,0.65431722]
[1673603728094,1e-08,18904.0,18903.0,0.497184]
[1673603728635,1e-08,18904.0,18903.0,0.65431722]
[1673603729130,1e-08,18904.0,18903.0,1.03376056]
[1673603729667,1e-08,18904.0,18903.0,1.26960267]
[1673603730476,1e-08,18904.0,18903.0,2.05079318]
[1673603730740,0.00129928,18904.0,18903.0,2.05123996]
[1673603731539,0.36862558,18908.0,18904.0,0.1]
[1673603731805,0.36862558,18908.0,18905.0,0.53948894]
[1673603732064,0.36862558,18908.0,18906.0,0.429184]
[1673603732652,0.36862558,18908.0,18906.0,0.1]
[1673603732875,0.37978852,18908.0,18906.0,0.1]
[1673603733128,0.36978852,18908.0,18906.0,0.1]
[1673603733402,0.37978852,18908.0,18906.0,0.178]
[1673603733677,0.37978852,18908.0,18906.0,0.1]
[1673603733960,0.38978852,18908.0,18906.0,0.178]
[1673603734244,0.38862558,18908.0,18906.0,0.8828872]
[1673603734513,0.38862558,18908.0,18907.0,0.329184]
[1673603734780,0.38978852,18908.0,18906.0,0.8828872]
[1673603735034,0.38862558,18908.0,18906.0,0.8828872]
[1673603736341,0.25594104,18907.0,18906.0,0.178]
[1673603736796,0.49337665,18907.0,18906.0,0.178]
[1673603736809,0.49337665,18907.0,18906.0,0.078]
[1673603738393,0.91325747,18907.0,18906.0,0.078]
[1673603740256,0.35924104,18907.0,18906.0,0.078]
[1673603740571,0.01,18907.0,18906.0,0.078]
[1673603740852,0.01,18907.0,18906.0,1.08399427]
[1673603741655,0.01,18907.0,18906.0,0.75481027]
[1673603742988,0.01,18907.0,18906.0,1.08399427]
[1673603746779,0.01,18907.0,18906.0,0.75481027]
[1673603747502,0.01116294,18907.0,18906.0,0.75481027]
[1673603747506,0.01,18907.0,18906.0,0.75481027]
[1673603747779,0.01,18907.0,18906.0,0.078]
[1673603747780,0.40780668,18907.0,18906.0,0.078]
[1673603751138,0.40910683,18907.0,18906.0,0.078]
[1673603751404,0.64654244,18907.0,18906.0,0.078]
[1673603751923,0.80474632,18907.0,18906.0,0.078]
[1673603752182,0.80590926,18907.0,18906.0,0.078]
[1673603752484,0.80474632,18907.0,18906.0,0.078]
[1673603752976,0.80590926,18907.0,18906.0,0.078]
[1673603753233,0.80474632,18907.0,18906.0,0.078]
[1673603754017,0.56847365,18907.0,18906.0,0.07790531]
[1673603754284,0.96419967,18907.0,18906.0,0.07790531]
[1673603754827,0.80507586,18907.0,18906.0,0.07790531]
[1673603755406,1.05633673,18907.0,18906.0,0.07790531]
[1673603755666,1.38544473,18907.0,18906.0,0.07790531]
[1673603756790,1.29214473,18907.0,18906.0,0.07790531]
[1673603758220,0.97556391,18907.0,18906.0,0.07790531]
[1673603758438,1.2937911,18907.0,18906.0,0.07790531]
[1673603758893,1.29262816,18907.0,18906.0,0.07790531]
[1673603759547,0.9646831,18907.0,18906.0,0.07790531]
[1673603760240,0.96352016,18907.0,18906.0,0.07790531]
[1673603761410,0.2491049,18907.0,18906.0,0.70811903]
[1673603761628,0.40688612,18907.0,18906.0,0.70811903]
[1673603762066,0.54688612,18907.0,18906.0,0.70811903]
[1673603762300,0.87599412,18907.0,18906.0,0.70811903]
[1673603762736,1.03452615,18907.0,18906.0,0.70811903]
[1673603763711,0.7174619,18907.0,18906.0,0.70811903]
[1673603763988,0.87599013,18907.0,18906.0,0.70811903]
[1673603764249,0.54688213,18907.0,18906.0,0.70811903]
[1673603764513,0.5468822,18907.0,18906.0,0.70811903]
[1673603765608,0.54804514,18907.0,18906.0,0.70811903]
[1673603765880,0.5468822,18907.0,18906.0,0.70811903]
[1673603767749,0.4068822,18907.0,18906.0,0.70811903]
[1673603768624,0.56531791,18907.0,18906.0,0.70811903]
[1673603769156,0.72384678,18907.0,18906.0,0.70811903]
[1673603769419,0.24825366,18907.0,18906.0,0.70811903]
[1673603769878,0.40678667,18907.0,18906.0,0.70811903]
[1673603771188,0.40678716,18907.0,18906.0,0.70811903]
[1673603771459,0.16898241,18907.0,18906.0,0.70811903]
[1673603771750,0.40678716,18907.0,18906.0,0.70811903]
[1673603772002,0.16898241,18907.0,18906.0,0.70811903]
[1673603772313,0.0104494,18907.0,18906.0,0.07790531]
[1673603772576,0.0104494,18907.0,18906.0,1.17514081]
[1673603773376,0.0104494,18907.0,18906.0,1.16425967]
[1673603774010,1e-08,18907.0,18906.0,2.33876878]
[1673603774788,1e-08,18907.0,18906.0,2.33887506]
[1673603775346,1e-08,18907.0,18906.0,2.49645633]
[1673603775611,1e-08,18907.0,18906.0,2.33878429]
[1673603775875,1e-08,18907.0,18906.0,3.32093135]
[1673603776613,0.01074252,18909.0,18907.0,5.999e-05]
[1673603776877,0.01074252,18909.0,18908.0,0.7658271]
[1673603777151,0.01074252,18909.0,18908.0,1.14389746]
[1673603777410,0.01074252,18909.0,18908.0,1.24389746]
[1673603777682,0.01074252,18909.0,18908.0,1.08635436]
[1673603778216,0.01074252,18909.0,18908.0,1.38289746]
[1673603779761,0.01074252,18909.0,18908.0,1.22535436]
[1673603780548,0.01074252,18909.0,18908.0,1.38289746]
[1673603780812,0.01074252,18909.0,18908.0,1.22535436]
[1673603790324,0.01074252,18909.0,18908.0,1.48535436]
[1673603791433,0.01204164,18909.0,18908.0,1.48535436]
[1673603791693,0.01204164,18909.0,18908.0,2.10583891]
[1673603792005,0.01204164,18909.0,18908.0,1.48535436]
[1673603798428,0.01204164,18909.0,18908.0,2.02461629]
[1673603799500,0.01204164,18909.0,18908.0,1.48535436]
[1673603799970,0.01197845,18909.0,18908.0,1.48535436]
[1673603801782,0.01176436,18910.0,18909.0,0.12395689]
[1673603802052,0.01176436,18910.0,18909.0,0.83121125]
[1673603802358,0.01176436,18910.0,18909.0,0.97081125]
[1673603803456,0.01176436,18910.0,18909.0,1.10981125]
[1673603803736,0.01399134,18913.0,18910.0,0.1]
[1673603804008,0.01399134,18913.0,18911.0,0.329184]
[1673603804278,0.01399134,18913.0,18912.0,0.429184]
[1673603805061,0.01399134,18913.0,18912.0,0.1]
[1673603805617,0.01399134,18913.0,18912.0,0.429184]
[1673603805885,0.01399134,18913.0,18912.0,0.570184]
[1673603807478,0.01399134,18913.0,18912.0,1.25049483]
[1673603807954,0.01399134,18913.0,18912.0,1.72775967]
[1673603808220,0.01399134,18913.0,18912.0,1.22815436]
[1673603808997,0.01399134,18913.0,18912.0,1.64000565]
[1673603809286,0.01399134,18913.0,18912.0,1.22615436]
[1673603809517,0.01399134,18913.0,18912.0,1.74451491]
[1673603809760,0.01399134,18913.0,18912.0,1.22615436]
[1673603810281,0.01399134,18913.0,18912.0,1.62001211]
[1673603810542,0.01399134,18913.0,18912.0,2.26183045]
[1673603810791,0.01399134,18913.0,18912.0,2.40083045]
[1673603811309,0.01399134,18913.0,18912.0,1.62001211]
[1673603811574,0.01399134,18913.0,18912.0,2.24328966]
[1673603811831,0.01529325,18913.0,18912.0,2.55837586]
[1673603812088,0.01529325,18913.0,18912.0,3.38437688]
[1673603812344,0.01529325,18913.0,18912.0,3.54237834]
[1673603813109,0.01529325,18913.0,18912.0,3.5420346]
[1673603813396,0.01529325,18913.0,18912.0,4.20969214]
[1673603813650,0.01529325,18913.0,18912.0,4.20890717]
[1673603813925,0.01529325,18913.0,18912.0,4.06990717]
[1673603814469,0.01529325,18913.0,18912.0,3.67660771]
[1673603814745,0.01358047,18914.0,18913.0,0.04587649]
[1673603815007,0.01358047,18914.0,18913.0,2.3601842]
[1673603815817,0.01358047,18914.0,18913.0,2.75321716]
[1673603816085,0.01358047,18914.0,18913.0,2.89121716]
[1673603816341,0.01358047,18914.0,18913.0,2.4981842]
[1673603817170,0.01358047,18914.0,18913.0,3.39098552]
[1673603817420,0.01358047,18914.0,18913.0,3.53108552]
[1673603817421,4.7e-07,18914.0,18913.0,3.53108552]
[1673603817684,4.7e-07,18914.0,18913.0,4.49404552]
[1673603817963,4.7e-07,18914.0,18913.0,5.58714541]
[1673603818247,0.01370557,18915.0,18914.0,0.07173953]
[1673603818513,0.01370557,18915.0,18914.0,3.34494724]
[1673603818775,0.01370557,18915.0,18914.0,3.64584724]
[1673603819049,0.01370557,18915.0,18914.0,4.11874856]
[1673603819311,0.01370557,18915.0,18914.0,5.21159093]
[1673603819600,0.01370557,18915.0,18914.0,3.64584724]
[1673603819900,0.01370557,18915.0,18914.0,3.78384724]
[1673603820165,5.57e-06,18915.0,18914.0,4.79365926]
[1673603820431,5.57e-06,18915.0,18914.0,3.70086361]
[1673603821006,0.01349012,18916.0,18914.0,3.70086361]
[1673603821007,5.69e-06,18916.0,18914.0,3.70086361]
[1673603821281,5.69e-06,18916.0,18915.0,4.1431351]
[1673603821552,5.69e-06,18916.0,18915.0,5.23593075]
[1673603821813,5.69e-06,18916.0,18915.0,5.276327]
[1673603822294,0.00391498,18921.0,18920.0,0.09069745]
[1673603822559,0.00391498,18921.0,18920.0,0.77018639]
[1673603822821,0.00391498,18921.0,18920.0,0.65988145]
[1673603823082,0.00391498,18921.0,18920.0,0.51988145]
[1673603823350,0.00391498,18921.0,18920.0,0.65888145]
[1673603824176,0.00391498,18921.0,18920.0,1.21037916]
[1673603825812,0.32559674,18921.0,18920.0,0.55888145]
[1673603827202,0.60369674,18921.0,18920.0,0.22969745]
[1673603827483,0.60485968,18921.0,18920.0,0.09069745]
[1673603827745,0.60485968,18921.0,18920.0,0.22969745]
[1673603827746,0.60469674,18921.0,18920.0,0.22969745]
[1673603828022,0.60369674,18921.0,18920.0,0.09069745]
[1673603828286,0.32659674,18921.0,18920.0,0.23169745]
[1673603831206,0.32775968,18921.0,18920.0,0.23169745]
[1673603831517,1.23596768,18921.0,18920.0,0.23169745]
[1673603831782,1.15011262,18921.0,18920.0,0.23169745]
[1673603832047,1.25141275,18921.0,18920.0,0.23169745]
[1673603833173,0.85033483,18921.0,18920.0,0.44200239]
[1673603833458,0.14060013,18921.0,18920.0,0.23169745]
[1673603833989,0.14060013,18921.0,18920.0,0.92529199]
[1673603834277,0.14060013,18921.0,18920.0,0.92543084]
[1673603835079,0.14060013,18921.0,18920.0,1.18543084]
[1673603835341,0.00130013,18921.0,18920.0,1.51461484]
[1673603835842,0.00130013,18921.0,18920.0,0.8210203]
[1673603836109,0.30343457,18922.0,18921.0,0.1]
[1673603836367,0.30343457,18922.0,18921.0,0.429184]
[1673603837468,0.30343457,18922.0,18921.0,0.185]
[1673603837753,0.30343457,18922.0,18921.0,1.09794965]
[1673603838323,0.30343457,18922.0,18921.0,0.514184]
[1673603838324,0.16463457,18922.0,18921.0,0.514184]
[1673603838850,0.16463457,18922.0,18921.0,1.05356071]
[1673603839625,0.16463457,18922.0,18921.0,0.514184]
[1673603839889,0.16463457,18922.0,18921.0,1.03798637]
[1673603840660,0.16463457,18922.0,18921.0,0.514184]
[1673603841191,0.16463457,18922.0,18921.0,1.07591814]
[1673603841678,0.16463457,18922.0,18921.0,0.514184]
[1673603842275,0.16463457,18922.0,18921.0,1.10814006]
[1673603845114,0.16463457,18922.0,18921.0,0.89225436]
[1673603845366,0.1393,18926.0,18921.0,0.89225436]
[1673603845367,0.01729867,18928.0,18921.0,2.0662894]
[1673603845619,0.02,18929.0,18927.0,0.5262327]
[1673603845902,0.02,18929.0,18928.0,1.54038772]
[1673603846176,0.02,18929.0,18928.0,2.25924035]
[1673603846462,0.00035958,18930.0,18929.0,0.05999999]
[1673603846723,0.37527244,18937.0,18930.0,0.1]
[1673603847021,0.37527244,18937.0,18931.0,1.59637531]
[1673603847022,0.0021,18937.0,18931.0,1.59637531]
[1673603847276,0.0021,18937.0,18934.0,0.1398]
[1673603847277,0.35816724,18936.0,18934.0,0.1398]
[1673603847583,0.35816724,18936.0,18935.0,0.329184]
[1673603847584,0.26723511,18936.0,18935.0,0.329184]
[1673603847847,0.26223511,18936.0,18935.0,0.70328043]
[1673603848115,0.26223511,18936.0,18935.0,0.329184]
[1673603848374,0.0021,18937.0,18935.0,0.329184]
[1673603848626,0.36147003,18937.0,18936.0,0.329184]
[1673603848953,0.36147003,18937.0,18936.0,0.00013873]
[1673603849709,0.00317792,18937.0,18931.0,0.00019]
[1673603849965,0.3,18936.0,18931.0,0.00019]
[1673603850248,0.3,18936.0,18931.0,0.61850168]
[1673603850249,0.1387,18932.0,18931.0,0.61850168]
[1673603850504,0.467808,18932.0,18931.0,0.61831168]
[1673603850742,0.1387,18932.0,18931.0,0.61831168]
[1673603851025,0.1387,18932.0,18931.0,0.75631168]
[1673603851270,0.1387,18932.0,18929.0,0.69339607]
[1673603851271,0.55686542,18932.0,18929.0,0.69339607]
[1673603851530,0.41916542,18932.0,18931.0,0.139]
[1673603851774,0.41924334,18932.0,18929.0,0.69331003]
[1673603852025,0.1388,18932.0,18929.0,0.74488497]
[1673603852268,0.1395,18934.0,18930.0,0.329184]
[1673603852269,0.00130383,18931.0,18930.0,0.329184]
[1673603852854,0.00130383,18931.0,18930.0,0.429184]
[1673603853529,0.14080383,18931.0,18930.0,0.429184]
[1673603853784,0.14180383,18931.0,18930.0,0.23906]
[1673603854548,0.14080383,18931.0,18930.0,0.10006]
[1673603855063,0.14080383,18931.0,18930.0,6e-05]
[1673603855360,0.28030383,18931.0,18930.0,6e-05]
[1673603855576,0.71048975,18931.0,18930.0,6e-05]
[1673603855837,0.61048975,18931.0,18930.0,6e-05]
[1673603856088,0.14180383,18931.0,18930.0,0.34936494]
[1673603856348,0.00230383,18931.0,18930.0,0.78624075]
[1673603856623,0.00230383,18931.0,18930.0,1.11542475]
[1673603857112,0.00130383,18931.0,18930.0,1.23642475]
[1673603857363,0.00130383,18931.0,18930.0,1.37642475]
[1673603857364,0.00230383,18931.0,18930.0,1.37642475]
[1673603857610,0.00130383,18931.0,18930.0,1.09205751]
[1673603857851,0.00130383,18931.0,18930.0,1.19205751]
[1673603858100,0.00230383,18931.0,18930.0,1.33105751]
[1673603858358,0.00130383,18931.0,18930.0,1.19205751]
[1673603858592,0.00230383,18931.0,18930.0,0.828244]
[1673603859102,0.00230383,18931.0,18930.0,0.82838278]
[1673603859866,0.00230383,18931.0,18930.0,0.82832278]
[1673603861118,0.00230383,18931.0,18930.0,1.63355548]
[1673603861373,0.1395,18936.0,18931.0,0.10460766]
[1673603861660,0.1395,18936.0,18933.0,0.1]
[1673603861884,0.00107792,18935.0,18934.0,0.329184]
[1673603862137,0.36210376,18935.0,18933.0,0.1]
[1673603862393,0.50160376,18935.0,18932.0,0.1]
[1673603862937,0.27917792,18934.0,18932.0,0.1]
[1673603863172,0.36210376,18935.0,18932.0,0.1]
[1673603863446,0.1395,18933.0,18932.0,0.1]
[1673603863705,0.1395,18933.0,18931.0,0.10460766]
[1673603863967,0.49604455,18934.0,18932.0,0.14]
[1673603864259,0.1395,18933.0,18932.0,0.14]
[1673603864703,0.1395,18933.0,18931.0,0.63590354]
[1673603864961,0.1405,18933.0,18931.0,0.77490354]
[1673603865218,0.45122169,18933.0,18931.0,0.67490354]
[1673603865474,0.45022169,18933.0,18931.0,0.53590354]
[1673603865730,0.1395,18933.0,18931.0,0.53590354]
[1673603865995,0.1388,18934.0,18931.0,0.53590354]
[1673603865996,0.1388,18934.0,18933.0,0.31072169]
[1673603866254,0.1388,18934.0,18933.0,0.9650838]
[1673603867045,0.2783,18934.0,18933.0,0.9650838]
[1673603867318,0.607408,18934.0,18933.0,0.9650838]
[1673603867577,0.2793,18934.0,18933.0,1.0570838]
[1673603867840,0.330108,18934.0,18933.0,1.0570838]
[1673603868244,0.001,18934.0,18933.0,1.0570838]
[1673603870312,0.001,18934.0,18933.0,0.40272169]
[1673603870853,0.001,18934.0,18933.0,0.73190569]
[1673603872635,0.00230328,18934.0,18933.0,1.30733759]
[1673603874754,0.00230328,18934.0,18933.0,0.97815359]
[1673603874981,0.0033812,18934.0,18933.0,0.97815359]
[1673603875502,0.00230328,18934.0,18933.0,0.97815359]
[1673603877274,0.0033812,18934.0,18933.0,0.97815359]
[1673603877495,0.00230328,18934.0,18933.0,0.97815359]
[1673603877727,0.18850328,18934.0,18933.0,0.40272169]
[1673603877949,0.78562691,18934.0,18933.0,0.40272169]
[1673603878403,1.08670483,18934.0,18933.0,0.40272169]
[1673603878679,0.78670483,18934.0,18933.0,0.40272169]
[1673603879123,1.25797531,18934.0,18933.0,0.40272169]
[1673603879352,0.6324892,18934.0,18933.0,0.40272169]
[1673603879577,0.96384038,18934.0,18933.0,0.40272169]
[1673603879793,0.6324892,18934.0,18933.0,0.40272169]
[1673603881324,0.7324892,18934.0,18933.0,0.40272169]
[1673603882124,1.0115892,18934.0,18933.0,0.40272169]
[1673603882387,1.59049966,18934.0,18933.0,0.40272169]
[1673603882913,1.58949966,18934.0,18933.0,0.31072169]
[1673603883170,1.58949966,18934.0,18933.0,0.33372169]
[1673603883430,1.58949966,18934.0,18933.0,0.31072169]
[1673603883747,1.92929966,18934.0,18931.0,0.00460766]
[1673603883979,0.3178,18932.0,18931.0,0.00460766]
[1673603884224,1.95683454,18936.0,18932.0,0.1]
[1673603884225,0.53233454,18936.0,18932.0,0.1]
[1673603884510,0.55283165,18937.0,18933.0,1.00174382]
[1673603884776,0.02049711,18937.0,18934.0,0.89453395]
[1673603885053,0.02049711,18937.0,18935.0,1.87186648]
[1673603885326,0.02049711,18937.0,18936.0,0.429184]
[1673603885849,0.02049711,18937.0,18936.0,0.329184]
[1673603886106,0.02049711,18937.0,18933.0,0.8719668]
[1673603886107,0.70162833,18936.0,18934.0,0.37180974]
[1673603886368,0.70162833,18936.0,18933.0,0.51741312]
[1673603886639,0.02049711,18937.0,18932.0,0.23475051]
[1673603886905,0.02049711,18937.0,18932.0,0.00019]
[1673603886906,0.17941181,18937.0,18932.0,0.00019]
[1673603887180,0.32049711,18937.0,18932.0,0.00019]
[1673603887445,0.329108,18936.0,18932.0,0.00019]
[1673603887898,0.0931,18933.0,18932.0,0.14019]
[1673603888163,0.42328592,18933.0,18932.0,0.14]
[1673603888421,0.09417792,18933.0,18932.0,0.14]
[1673603888678,0.0931,18933.0,18932.0,0.002]
[1673603889004,0.0931,18933.0,18932.0,0.143]
[1673603889208,0.0931,18933.0,18932.0,0.002]
[1673603889458,0.09417792,18933.0,18932.0,0.102]
[1673603889974,0.78100432,18933.0,18932.0,0.102]
[1673603890238,1.11119024,18933.0,18932.0,0.102]
[1673603890754,1.41119024,18933.0,18932.0,0.102]
[1673603891012,0.78100432,18933.0,18932.0,0.102]
[1673603891270,0.78208224,18933.0,18932.0,0.102]
[1673603891551,1.11119024,18933.0,18932.0,0.102]
[1673603892042,0.78208224,18933.0,18932.0,0.102]
[1673603892294,1.41119024,18933.0,18932.0,0.102]
[1673603892851,1.13536347,18933.0,18932.0,0.102]
[1673603893119,1.68835983,18933.0,18932.0,0.09972445]
[1673603893629,1.69685983,18933.0,18932.0,0.09972445]
[1673603893881,1.38090401,18933.0,18932.0,0.09931007]
[1673603894206,0.1,18932.0,18931.0,0.00460766]
[1673603894406,0.96133473,18932.0,18931.0,0.00460766]
[1673603894679,1.72699501,18932.0,18931.0,0.00460766]
[1673603895472,1.41108945,18932.0,18931.0,0.00460766]
[1673603895747,1.56743657,18932.0,18931.0,0.01060766]
[1673603896023,1.49035512,18932.0,18931.0,0.01060766]
[1673603896307,1.47535512,18932.0,18931.0,0.00460766]
[1673603896574,0.1,18931.0,18930.0,0.2259158]
[1673603896875,0.57383551,18931.0,18930.0,0.15151139]
[1673603897131,1.20294351,18931.0,18930.0,0.02101339]
[1673603897388,0.4178,18930.0,18926.0,0.00362966]
[1673603897648,0.1855,18927.0,18926.0,0.00381966]
[1673603897910,0.814608,18927.0,18926.0,0.00381966]
[1673603898143,1.35636752,18927.0,18926.0,0.00381966]
[1673603899231,0.914608,18927.0,18926.0,0.00381966]
[1673603899549,0.914608,18927.0,18926.0,0.02881966]
[1673603899566,0.914608,18927.0,18926.0,0.28881966]
[1673603899819,1.59086697,18927.0,18926.0,0.28862966]
[1673603900081,0.91568592,18927.0,18926.0,0.28862966]
[1673603900329,0.92418592,18927.0,18926.0,0.28862966]
[1673603900586,1.08209139,18927.0,18926.0,0.28862966]
[1673603900872,0.92418592,18927.0,18926.0,0.28862966]
[1673603901123,1.07539088,18927.0,18926.0,0.28862966]
[1673603901371,1.07539088,18927.0,18926.0,0.26362966]
[1673603901639,1.23329635,18927.0,18926.0,0.27062966]
[1673603901888,1.25729635,18927.0,18926.0,0.27062966]
[1673603902158,1.09939088,18927.0,18926.0,0.27062966]
[1673603903504,1.78164219,18927.0,18926.0,0.27062966]
[1673603903779,1.13695931,18927.0,18926.0,0.27062966]
[1673603905265,1.42845931,18927.0,18926.0,0.27062966]
[1673603907119,1.12845931,18927.0,18926.0,0.27062966]
[1673603907619,1.12953723,18927.0,18926.0,0.27062966]
[1673603907876,1.03643723,18927.0,18926.0,0.26562966]
[1673603908886,1.33643723,18927.0,18926.0,0.26562966]
[1673603911765,1.48008095,18927.0,18926.0,0.26562966]
[1673603912016,1.57318095,18927.0,18926.0,0.26562966]
[1673603913003,1.42953723,18927.0,18926.0,0.26562966]
[1673603913241,1.43083936,18927.0,18926.0,0.26562966]
[1673603913838,1.13083936,18927.0,18926.0,0.26562966]
[1673603914061,1.43083936,18927.0,18926.0,0.26562966]
[1673603914323,1.13083936,18927.0,18926.0,0.26562966]
[1673603915081,1.2631633,18927.0,18926.0,0.26562966]
[1673603915360,1.13083936,18927.0,18926.0,0.26562966]
[1673603916926,0.02530213,18927.0,18926.0,1.15352159]
[1673603917212,0.02530213,18927.0,18926.0,1.27240065]
[1673603917995,0.00130213,18927.0,18926.0,1.26540065]